[Event "DVM U12w 2023"]
[Site "Magdeburg"]
[Date "2023.12.30"]
[Round "7"]
[White "Gerth, Lydia"]
[Black "Hofmeier, Viktoria"]
[Result "1/2-1/2"]
[WhiteElo "1214"]
[BlackElo "1408"]
[PlyCount "72"]
[EventDate "2022.12.27"]
[EventType "team-tourn"]
[EventRounds "7"]
[EventCountry "GER"]
[TimeControl "40/5400+30:1800+30"]
[WhiteClock "0:44:39"]
[BlackClock "1:07:19"]

1. e4 {[%emt 0:00:02]} e5 {[%emt 0:00:08]} 2. Nf3 {[%emt 0:00:12]} Nc6 {[%emt 0:00:20]} 3. Bc4 {[%emt 0:00:05]} Nf6 {[%emt 0:00:19]} 4. d3 {[%emt 0:01:30]} h6 {[%emt 0:00:32]} 5. Nc3 {[%emt 0:00:23]} Bc5 {[%emt 0:00:26]} 6. Be3 {[%emt 0:00:42]} Bb6 {[%emt 0:00:18]} 7. O-O {[%emt 0:05:38]} O-O {[%emt 0:00:20]} 8. a3 {[%emt 0:01:30]} d6 {[%emt 0:00:42]} 9. h3 {[%emt 0:01:14]} Be6 {[%emt 0:00:57]} 10. Nd5 {[%emt 0:02:00]} Re8 {[%emt 0:03:08]} 11. Nh2 {[%emt 0:07:49]} Bxd5 {[%emt 0:04:11]} 12. Bxd5 {[%emt 0:01:48]} Nxd5 {[%emt 0:00:15]} 13. exd5 {[%emt 0:00:17]} Ne7 {[%emt 0:01:40]} 14. c4 {[%emt 0:03:00]} Nf5 {[%emt 0:01:09]} 15. Qf3 {[%emt 0:04:40]} Nd4 {[%emt 0:01:20]} 16. Qg4 {[%emt 0:02:11]} Qf6 {[%emt 0:02:08]} 17. Kh1 {[%emt 0:06:29]} Nc2 {[%emt 0:03:59]} 18. Rac1 {[%emt 0:00:46]} Nxe3 {[%emt 0:00:20]} 19. fxe3 {[%emt 0:00:14]} Qg6 {[%emt 0:00:17]} 20. Qxg6 {[%emt 0:03:58]} fxg6 {[%emt 0:00:10]} 21. e4 {[%emt 0:00:14]} Rf8 {[%emt 0:00:16]} 22. Rf3 {[%emt 0:04:10]} Bd4 {[%emt 0:01:07]} 23. Rb1 {[%emt 0:02:49]} Rf7 {[%emt 0:00:49]} 24. Rxf7 {[%emt 0:00:46]} Kxf7 {[%emt 0:00:03]} 25. Nf3 {[%emt 0:00:19]} Bb6 {[%emt 0:00:42]} 26. b4 {[%emt 0:02:35]} a5 {[%emt 0:02:29]} 27. b5 {[%emt 0:02:15]} Bc5 {[%emt 0:04:33]} 28. a4 {[%emt 0:00:17]} g5 {[%emt 0:01:30]} 29. g4 {[%emt 0:00:47]} Rf8 {[%emt 0:00:35]} 30. Kg2 {[%emt 0:00:25]} Ke7 {[%emt 0:00:51]} 31. Kg3 {[%emt 0:00:22]} Rf6 {[%emt 0:02:09]} 32. Rh1 {[%emt 0:01:29]} Kf7 {[%emt 0:01:13]} 33. h4 {[%emt 0:00:26]} gxh4+ {[%emt 0:00:32]} 34. Rxh4 {[%emt 0:00:33]} g5 {[%emt 0:00:34]} 35. Rh5 {[%emt 0:00:30]} Kg6 {[%emt 0:00:31]} 36. Kg2 {[%emt 0:01:26]} Rf4 {[%emt 0:00:38] normal} 1/2-1/2

[Event "DVM U12w 2023"]
[Site "Magdeburg"]
[Date "2023.12.30"]
[Round "7"]
[White "Berger, Jennifer"]
[Black "Roessler, Helena"]
[Result "0-1"]
[WhiteElo "1210"]
[BlackElo "1060"]
[PlyCount "72"]
[EventDate "2022.12.27"]
[EventType "team-tourn"]
[EventRounds "7"]
[EventCountry "GER"]
[TimeControl "40/5400+30:1800+30"]
[WhiteClock "1:05:18"]
[BlackClock "0:57:46"]

1. e4 {[%emt 0:00:01]} c5 {[%emt 0:00:06]} 2. d4 {[%emt 0:00:05]} cxd4 {[%emt 0:00:05]} 3. c3 {[%emt 0:00:09]} d5 {[%emt 0:00:10]} 4. exd5 {[%emt 0:00:39]} Qxd5 {[%emt 0:00:15]} 5. cxd4 {[%emt 0:00:12]} e6 {[%emt 0:00:19]} 6. Nc3 {[%emt 0:00:17]} Bb4 {[%emt 0:00:29]} 7. a3 {[%emt 0:00:33]} Bxc3+ {[%emt 0:00:13]} 8. bxc3 {[%emt 0:00:07]} Nc6 {[%emt 0:00:25]} 9. Nf3 {[%emt 0:01:03]} Nf6 {[%emt 0:00:24]} 10. Bf4 {[%emt 0:01:25]} O-O {[%emt 0:00:51]} 11. Bd3 {[%emt 0:01:24]} Bd7 {[%emt 0:05:10]} 12. O-O {[%emt 0:00:29]} Rac8 {[%emt 0:00:33]} 13. Qe2 {[%emt 0:01:16]} h6 {[%emt 0:02:39]} 14. Rab1 {[%emt 0:02:24]} Na5 {[%emt 0:04:56]} 15. Rfc1 {[%emt 0:02:00]} Nc4 {[%emt 0:09:44]} 16. Bxc4 {[%emt 0:01:58]} Rxc4 {[%emt 0:00:23]} 17. Be5 {[%emt 0:01:33]} Ne4 {[%emt 0:03:38]} 18. Qd3 {[%emt 0:08:21]} Rfc8 {[%emt 0:02:40]} 19. Rb3 {[%emt 0:04:02]} Ba4 {[%emt 0:00:47]} 20. Rb4 {[%emt 0:02:24]} Rxc3 {[%emt 0:01:17]} 21. Rxc3 {[%emt 0:01:19]} Rxc3 {[%emt 0:00:11]} 22. Qe2 {[%emt 0:00:51]} Rc1+ {[%emt 0:06:01]} 23. Ne1 {[%emt 0:00:17]} Bc6 {[%emt 0:01:47]} 24. h3 {[%emt 0:03:41]} Nc3 {[%emt 0:01:38]} 25. Qf1 {[%emt 0:00:19]} Rxe1 {[%emt 0:01:00]} 26. f3 {[%emt 0:02:23]} Rxf1+ {[%emt 0:00:20]} 27. Kxf1 {[%emt 0:00:08]} f6 {[%emt 0:01:12]} 28. Bf4 {[%emt 0:00:39]} e5 {[%emt 0:00:38]} 29. dxe5 {[%emt 0:00:40]} fxe5 {[%emt 0:00:08]} 30. Kf2 {[%emt 0:00:28]} Qc5+ {[%emt 0:00:14]} 31. Be3 {[%emt 0:00:16]} Nd1+ {[%emt 0:00:25]} 32. Kg3 {[%emt 0:00:23]} Qxe3 {[%emt 0:00:26]} 33. h4 {[%emt 0:00:52]} Qf2+ {[%emt 0:00:20]} 34. Kg4 {[%emt 0:00:11]} Qxg2+ {[%emt 0:00:12]} 35. Kf5 {[%emt 0:00:11]} Qxf3+ {[%emt 0:00:36]} 36. Ke6 {[%emt 0:00:12]} Qf6# {[%emt 0:00:32] normal} 0-1

[Event "DVM U12w 2023"]
[Site "Magdeburg"]
[Date "2023.12.30"]
[Round "7"]
[White "Mauhs, Helena"]
[Black "Oschinski, Mathilda"]
[Result "1-0"]
[WhiteElo "1194"]
[BlackElo "1155"]
[PlyCount "52"]
[EventDate "2022.12.27"]
[EventType "team-tourn"]
[EventRounds "7"]
[EventCountry "GER"]
[TimeControl "40/5400+30:1800+30"]
[WhiteClock "0:36:50"]
[BlackClock "0:33:46"]

1. e4 {[%emt 0:00:05]} c5 {[%emt 0:00:04]} 2. Nf3 {[%emt 0:00:29]} g6 {[%emt 0:00:25]} 3. Bc4 {[%emt 0:04:08]} Nc6 {[%emt 0:04:05]} 4. Nc3 {[%emt 0:04:42]} Bg7 {[%emt 0:02:28]} 5. O-O {[%emt 0:07:25]} e6 {[%emt 0:02:49]} 6. d3 {[%emt 0:01:58]} Nge7 {[%emt 0:03:38]} 7. Bf4 {[%emt 0:10:37]} O-O {[%emt 0:08:10]} 8. Re1 {[%emt 0:05:56]} d5 {[%emt 0:06:55]} 9. Bb3 {[%emt 0:04:20]} dxe4 {[%emt 0:07:05]} 10. dxe4 {[%emt 0:00:28]} Qxd1 {[%emt 0:01:42]} 11. Raxd1 {[%emt 0:00:12]} b6 {[%emt 0:04:28]} 12. Bd6 {[%emt 0:05:33]} Rd8 {[%emt 0:05:29]} 13. Bxe7 {[%emt 0:01:08]} Rxd1 {[%emt 0:00:35]} 14. Rxd1 {[%emt 0:00:07]} Nxe7 {[%emt 0:00:15]} 15. Rd8+ {[%emt 0:01:40]} Bf8 {[%emt 0:00:17]} 16. Ne5 {[%emt 0:01:19]} Bb7 {[%emt 0:03:49]} 17. Rd7 {[%emt 0:03:53]} Bc6 {[%emt 0:06:04]} 18. Rc7 {[%emt 0:03:55]} Be8 {[%emt 0:07:26]} 19. g4 {[%emt 0:05:15]} b5 20. Rxc5 {[%emt 0:00:30]} Nd5 21. Bxd5 {[%emt 0:00:30]} exd5 22. Rxd5 {[%emt 0:00:30]} f6 23. Nd7 {[%emt 0:00:30]} Bxd7 24. Rxd7 {[%emt 0:00:30]} b4 25. Nd5 {[%emt 0:00:30]} a5 26. Nxf6+ {[%emt 0:00:30]} Kh8 {normal} 1-0

[Event "DVM U12w 2023"]
[Site "Magdeburg"]
[Date "2023.12.30"]
[Round "7"]
[White "Albrecht, Sidney Jenna"]
[Black "Grunert, Greta"]
[Result "1-0"]
[WhiteElo "1188"]
[BlackElo "1288"]
[PlyCount "141"]
[EventDate "2022.12.27"]
[EventType "team-tourn"]
[EventRounds "7"]
[EventCountry "GER"]
[TimeControl "40/5400+30:1800+30"]
[WhiteClock "0:42:39"]
[BlackClock "0:18:49"]

1. c4 {[%emt 0:00:03]} e6 {[%emt 0:00:10]} 2. g3 {[%emt 0:00:17]} d5 {[%emt 0:00:14]} 3. Bg2 {[%emt 0:00:09]} Nf6 {[%emt 0:00:41]} 4. e3 {[%emt 0:01:15]} Be7 {[%emt 0:00:58]} 5. Ne2 {[%emt 0:00:28]} c5 {[%emt 0:03:10]} 6. O-O {[%emt 0:01:37]} Nc6 {[%emt 0:00:43]} 7. d4 {[%emt 0:13:12]} b6 {[%emt 0:07:16]} 8. Re1 {[%emt 0:05:35]} O-O {[%emt 0:08:58]} 9. Nbc3 {[%emt 0:04:18]} Ba6 {[%emt 0:01:48]} 10. b3 {[%emt 0:03:50]} Rc8 {[%emt 0:05:46]} 11. cxd5 {[%emt 0:06:32]} exd5 {[%emt 0:00:31]} 12. dxc5 {[%emt 0:01:52]} Nb4 {[%emt 0:05:07]} 13. Nf4 {[%emt 0:04:47]} Rxc5 {[%emt 0:02:19]} 14. Bb2 {[%emt 0:04:59]} Re8 {[%emt 0:03:43]} 15. a3 {[%emt 0:01:37]} Nc6 {[%emt 0:05:30]} 16. b4 {[%emt 0:01:39]} Rc4 {[%emt 0:02:00]} 17. b5 {[%emt 0:00:17]} Rxc3 {[%emt 0:02:49]} 18. Bxc3 {[%emt 0:00:15]} Bxb5 {[%emt 0:00:13]} 19. Nxd5 {[%emt 0:00:51]} Nxd5 {[%emt 0:04:50]} 20. Bxd5 {[%emt 0:00:48]} Bf6 {[%emt 0:05:03]} 21. Bxf6 {[%emt 0:00:44]} Qxf6 {[%emt 0:00:11]} 22. a4 {[%emt 0:00:27]} Ba6 {[%emt 0:00:39]} 23. Qf3 {[%emt 0:01:59]} Qxf3 {[%emt 0:00:40]} 24. Bxf3 {[%emt 0:00:08]} Ne5 {[%emt 0:00:13]} 25. Be2 {[%emt 0:00:47]} Bb7 {[%emt 0:03:22]} 26. Rec1 {[%emt 0:02:30]} Re7 {[%emt 0:03:53]} 27. f4 {[%emt 0:01:34]} Nc6 {[%emt 0:01:18]} 28. Bf3 {[%emt 0:00:17]} Re6 {[%emt 0:05:09]} 29. Rc3 {[%emt 0:00:20]} h6 {[%emt 0:01:11]} 30. Rac1 {[%emt 0:00:13]} Na5 {[%emt 0:02:42]} 31. Bxb7 {[%emt 0:00:43]} Nxb7 {[%emt 0:00:19]} 32. Rc7 {[%emt 0:00:40]} Nc5 {[%emt 0:00:49]} 33. Rxa7 {[%emt 0:00:21]} Rxe3 {[%emt 0:00:37]} 34. a5 {[%emt 0:00:29]} Nb3 {[%emt 0:01:12]} 35. Rc8+ {[%emt 0:00:58]} Kh7 {[%emt 0:00:18]} 36. axb6 {[%emt 0:00:10]} Re1+ {[%emt 0:03:15]} 37. Kf2 {[%emt 0:00:14]} Rb1 {[%emt 0:00:13]} 38. b7 {[%emt 0:00:16]} Rb2+ {[%emt 0:00:12]} 39. Ke3 {[%emt 0:00:16]} Na5 {[%emt 0:03:14]} 40. Rxa5 {[%emt 0:01:01]} Rxb7 {[%emt 0:00:09]} 41. g4 {[%emt 0:31:23]} Rb3+ {[%emt 0:30:14]} 42. Ke4 {[%emt 0:00:23]} Rb4+ {[%emt 0:00:09]} 43. Kf3 {[%emt 0:00:35]} Rb3+ {[%emt 0:00:06]} 44. Kg2 {[%emt 0:00:31]} Rb2+ {[%emt 0:00:09]} 45. Kf3 {[%emt 0:00:15]} Rb3+ {[%emt 0:00:05]} 46. Ke2 {[%emt 0:00:10]} Rb2+ {[%emt 0:00:05]} 47. Kd3 {[%emt 0:00:09]} Rxh2 {[%emt 0:00:21]} 48. g5 {[%emt 0:00:21]} hxg5 {[%emt 0:00:57]} 49. fxg5 {[%emt 0:00:14]} Rh3+ {[%emt 0:00:24]} 50. Kc4 {[%emt 0:00:13]} Rh1 {[%emt 0:00:39]} 51. Kb5 {[%emt 0:00:29]} Rg1 {[%emt 0:01:29]} 52. Kb6 {[%emt 0:00:33]} Rb1+ {[%emt 0:00:54]} 53. Rb5 {[%emt 0:00:10]} Re1 {[%emt 0:00:40]} 54. Rc7 {[%emt 0:01:02]} Rf1 {[%emt 0:00:35]} 55. Kc6 {[%emt 0:00:59]} Rc1+ {[%emt 0:00:39]} 56. Kd7 {[%emt 0:00:12]} Rd1+ {[%emt 0:00:13]} 57. Ke8 {[%emt 0:00:13]} Kg8 {[%emt 0:00:41]} 58. Rxf7 {[%emt 0:00:44]} Re1+ {[%emt 0:01:13]} 59. Re7 {[%emt 0:00:23]} Rf1 {[%emt 0:01:19]} 60. g6 {[%emt 0:01:01]} Rf6 {[%emt 0:00:53]} 61. Rg5 {[%emt 0:00:30]} Rf1 {[%emt 0:00:45]} 62. Kd8 {[%emt 0:00:35]} Rd1+ {[%emt 0:00:08]} 63. Rd7 {[%emt 0:00:06]} Re1 {[%emt 0:00:25]} 64. Kc7 {[%emt 0:01:43]} Rc1+ {[%emt 0:00:08]} 65. Kd6 {[%emt 0:00:27]} Rd1+ {[%emt 0:00:14]} 66. Rd5 {[%emt 0:00:06]} Rf1 {[%emt 0:01:26]} 67. Rd8+ {[%emt 0:00:10]} Rf8 {[%emt 0:00:02]} 68. Rxf8+ {[%emt 0:00:14]} Kxf8 {[%emt 0:00:08]} 69. Kd7 {[%emt 0:00:11]} Kg8 {[%emt 0:00:11]} 70. Re5 {[%emt 0:00:11]} Kf8 {[%emt 0:00:04]} 71. Re8# {[%emt 0:00:40] normal} 1-0

[Event "DVM U12w 2023"]
[Site "Magdeburg"]
[Date "2023.12.30"]
[Round "7"]
[White "Wolf, Helena"]
[Black "Hladeniuk, Yelyzaveta"]
[Result "1/2-1/2"]
[WhiteElo "1188"]
[BlackElo "1362"]
[PlyCount "83"]
[EventDate "2022.12.27"]
[EventType "team-tourn"]
[EventRounds "7"]
[EventCountry "GER"]
[TimeControl "40/5400+30:1800+30"]
[WhiteClock "0:20:24"]
[BlackClock "0:39:14"]

1. e4 {[%emt 0:00:01]} c6 {[%emt 0:00:07]} 2. d4 {[%emt 0:00:07]} d5 {[%emt 0:00:11]} 3. exd5 {[%emt 0:00:09]} cxd5 {[%emt 0:00:12]} 4. Bd3 {[%emt 0:00:10]} Nc6 {[%emt 0:00:31]} 5. c3 {[%emt 0:00:09]} Nf6 {[%emt 0:00:52]} 6. Bf4 {[%emt 0:00:09]} h6 {[%emt 0:01:14]} 7. Nf3 {[%emt 0:03:00]} Bg4 {[%emt 0:00:51]} 8. Nbd2 {[%emt 0:00:44]} e6 {[%emt 0:00:57]} 9. Qb3 {[%emt 0:03:26]} Qc8 {[%emt 0:02:50]} 10. O-O {[%emt 0:01:29]} Bxf3 {[%emt 0:00:49]} 11. Nxf3 {[%emt 0:01:52]} Be7 {[%emt 0:00:40]} 12. Rae1 {[%emt 0:01:37]} O-O {[%emt 0:01:37]} 13. h3 {[%emt 0:03:44]} Na5 {[%emt 0:00:58]} 14. Qc2 {[%emt 0:11:42]} Rd8 {[%emt 0:03:00]} 15. Ne5 {[%emt 0:03:02]} Nc4 {[%emt 0:01:07]} 16. Qb3 {[%emt 0:05:40]} Bd6 {[%emt 0:03:44]} 17. Qc2 {[%emt 0:04:27]} Qc7 {[%emt 0:02:11]} 18. Bh2 {[%emt 0:06:58]} Rac8 {[%emt 0:02:16]} 19. Qe2 {[%emt 0:01:35]} b5 {[%emt 0:04:38]} 20. Rc1 {[%emt 0:01:32]} Ne4 {[%emt 0:02:21]} 21. Rfd1 {[%emt 0:03:20]} Nf6 {[%emt 0:09:10]} 22. Nf3 {[%emt 0:04:00]} Bxh2+ {[%emt 0:01:03]} 23. Nxh2 {[%emt 0:00:18]} Qf4 {[%emt 0:01:45]} 24. Re1 {[%emt 0:04:29]} Qd2 {[%emt 0:01:26]} 25. Rc2 {[%emt 0:01:26]} Qxe2 {[%emt 0:00:50]} 26. Rexe2 {[%emt 0:00:32]} Nh5 {[%emt 0:01:07]} 27. Re1 {[%emt 0:01:23]} Nf4 {[%emt 0:01:18]} 28. Be2 {[%emt 0:01:04]} Nxe2+ {[%emt 0:01:06]} 29. Rexe2 {[%emt 0:00:38]} Nd6 {[%emt 0:00:33]} 30. Nf3 {[%emt 0:01:02]} Ne4 {[%emt 0:02:45]} 31. Nd2 {[%emt 0:02:36]} Nxd2 {[%emt 0:03:53]} 32. Rcxd2 {[%emt 0:01:34]} Rc4 {[%emt 0:01:27]} 33. Rd3 {[%emt 0:01:06]} Rdc8 {[%emt 0:00:26]} 34. g3 {[%emt 0:04:27]} Kf8 {[%emt 0:02:58]} 35. Kg2 {[%emt 0:00:45]} Ke7 {[%emt 0:05:15]} 36. h4 {[%emt 0:01:16]} Ra8 {[%emt 0:02:53]} 37. Ree3 {[%emt 0:02:35]} a5 {[%emt 0:00:26]} 38. b3 {[%emt 0:01:49]} Rc7 {[%emt 0:00:19]} 39. a3 {[%emt 0:02:18]} a4 {[%emt 0:00:29]} 40. b4 {[%emt 0:00:30]} Rc4 {[%emt 0:00:28]} 41. Kf1 {[%emt 0:31:14]} Rac8 {[%emt 0:31:03]} 42. Ke2 {[%emt 0:01:11] normal} 1/2-1/2

[Event "DVM U12w 2023"]
[Site "Magdeburg"]
[Date "2023.12.30"]
[Round "7"]
[White "Subocz, Barbara"]
[Black "Goy, Isabella"]
[Result "1/2-1/2"]
[WhiteElo "1169"]
[BlackElo "880"]
[PlyCount "63"]
[EventDate "2022.12.27"]
[EventType "team-tourn"]
[EventRounds "7"]
[EventCountry "GER"]
[TimeControl "40/5400+30:1800+30"]
[WhiteClock "0:47:37"]
[BlackClock "0:36:05"]

1. e4 {[%emt 0:00:02]} e5 {[%emt 0:00:04]} 2. Nf3 {[%emt 0:00:33]} Nc6 {[%emt 0:00:12]} 3. Bb5 {[%emt 0:00:09]} Bd6 {[%emt 0:00:36]} 4. c3 {[%emt 0:01:05]} Nf6 {[%emt 0:00:28]} 5. d3 {[%emt 0:00:16]} O-O {[%emt 0:01:28]} 6. O-O {[%emt 0:00:51]} Re8 {[%emt 0:00:30]} 7. Nbd2 {[%emt 0:01:40]} a6 {[%emt 0:02:02]} 8. Ba4 {[%emt 0:00:18]} b5 {[%emt 0:00:38]} 9. Bb3 {[%emt 0:00:07]} Na5 {[%emt 0:00:28]} 10. Bc2 {[%emt 0:00:31]} Bb7 {[%emt 0:03:13]} 11. Re1 {[%emt 0:00:45]} h6 {[%emt 0:01:24]} 12. Nf1 {[%emt 0:01:33]} c6 {[%emt 0:06:31]} 13. Ng3 {[%emt 0:01:01]} Ng4 {[%emt 0:08:09]} 14. h3 {[%emt 0:01:23]} Nf6 {[%emt 0:03:53]} 15. Nf5 {[%emt 0:04:41]} Bc7 {[%emt 0:02:51]} 16. a4 {[%emt 0:09:35]} Bc8 {[%emt 0:08:51]} 17. b4 {[%emt 0:00:00]} Nb7 {[%emt 0:01:28]} 18. Be3 {[%emt 0:00:00]} bxa4 {[%emt 0:00:35]} 19. Bxa4 {[%emt 0:00:00]} Nd6 {[%emt 0:00:20]} 20. Ng3 {[%emt 0:01:01]} Bb7 {[%emt 0:00:28]} 21. Nh2 {[%emt 0:06:16]} Bb6 {[%emt 0:04:06]} 22. Qf3 {[%emt 0:00:54]} Bxe3 {[%emt 0:01:23]} 23. fxe3 {[%emt 0:00:33]} a5 {[%emt 0:01:12]} 24. Bb3 {[%emt 0:02:04]} axb4 {[%emt 0:00:48]} 25. Rxa8 {[%emt 0:00:23]} Bxa8 {[%emt 0:00:20]} 26. Ng4 {[%emt 0:00:13]} bxc3 {[%emt 0:03:17]} 27. Rc1 {[%emt 0:01:53]} Bb7 {[%emt 0:03:56]} 28. Rxc3 {[%emt 0:00:45]} Ba6 {[%emt 0:01:32]} 29. Bc2 {[%emt 0:13:39]} Qe7 {[%emt 0:06:05]} 30. Rb3 {[%emt 0:04:29]} Qe6 {[%emt 0:02:46]} 31. Nxf6+ {[%emt 0:01:29]} Qxf6 {[%emt 0:00:21]} 32. Qg4 {[%emt 0:00:44] normal} 1/2-1/2

[Event "DVM U12w 2023"]
[Site "Magdeburg"]
[Date "2023.12.30"]
[Round "7"]
[White "Shakhimardanova, Nigina"]
[Black "Ruddat, Maila"]
[Result "0-1"]
[WhiteElo "1067"]
[BlackElo "1187"]
[PlyCount "98"]
[EventDate "2022.12.27"]
[EventType "team-tourn"]
[EventRounds "7"]
[EventCountry "GER"]
[TimeControl "40/5400+30:1800+30"]
[WhiteClock "1:29:32"]
[BlackClock "1:29:18"]

1. e4 {[%emt 0:00:01]} e5 {[%emt 0:00:43]} 2. f4 {[%emt 0:00:08]} d5 {[%emt 0:00:56]} 3. exd5 {[%emt 0:00:14]} exf4 {[%emt 0:02:06]} 4. Nf3 {[%emt 0:00:51]} Nf6 {[%emt 0:00:30]} 5. Bc4 {[%emt 0:00:13]} Bg4 {[%emt 0:00:35]} 6. O-O {[%emt 0:00:49]} Be7 {[%emt 0:00:37]} 7. d4 {[%emt 0:00:23]} O-O {[%emt 0:00:17]} 8. Bxf4 {[%emt 0:00:19]} Nxd5 {[%emt 0:01:46]} 9. Bxd5 {[%emt 0:00:16]} Qxd5 {[%emt 0:00:14]} 10. Bxc7 {[%emt 0:00:28]} Bd6 {[%emt 0:00:33]} 11. Bxd6 {[%emt 0:00:04]} Qxd6 {[%emt 0:00:08]} 12. Qd3 {[%emt 0:00:26]} Nc6 {[%emt 0:00:59]} 13. Re1 {[%emt 0:00:13]} Bxf3 {[%emt 0:00:27]} 14. gxf3 {[%emt 0:00:38]} Qxd4+ {[%emt 0:03:26]} 15. Kg2 {[%emt 0:01:50]} Qxd3 {[%emt 0:00:00]} 16. cxd3 {[%emt 0:00:07]} Nd4 {[%emt 0:00:00]} 17. Rc1 {[%emt 0:00:16]} Rfe8 {[%emt 0:00:39]} 18. Kf2 {[%emt 0:00:38]} Re2+ {[%emt 0:00:00]} 19. Kg3 {[%emt 0:00:19]} Rxb2 {[%emt 0:01:10]} 20. Nc3 {[%emt 0:00:47]} Ne2+ {[%emt 0:00:00]} 21. Nxe2 {[%emt 0:00:05]} Rxe2 {[%emt 0:00:00]} 22. Rd1 {[%emt 0:00:11]} h6 {[%emt 0:00:00]} 23. d4 {[%emt 0:00:11]} Rd8 {[%emt 0:00:00]} 24. d5 {[%emt 0:00:05]} Re7 {[%emt 0:00:00]} 25. Rd4 {[%emt 0:01:03]} Rd6 {[%emt 0:00:00]} 26. Rad1 {[%emt 0:00:19]} Re2 {[%emt 0:00:00]} 27. a4 {[%emt 0:00:12]} Re8 {[%emt 0:00:00]} 28. Re4 {[%emt 0:00:08]} Red8 {[%emt 0:00:10]} 29. Red4 {[%emt 0:00:53]} a6 {[%emt 0:02:45]} 30. Kf4 {[%emt 0:00:00]} b5 {[%emt 0:00:34]} 31. axb5 {[%emt 0:00:13]} axb5 {[%emt 0:00:10]} 32. Ke4 {[%emt 0:00:00]} Kf8 {[%emt 0:00:44]} 33. Rb4 {[%emt 0:00:37]} Rb8 {[%emt 0:00:36]} 34. Ke5 {[%emt 0:01:40]} Ke7 {[%emt 0:00:17]} 35. Re1 {[%emt 0:00:14]} Kd7 {[%emt 0:00:14]} 36. Kd4 {[%emt 0:00:09]} Rbb6 {[%emt 0:02:14]} 37. Rd1 {[%emt 0:00:59]} Rf6 {[%emt 0:00:00]} 38. Ke4 {[%emt 0:01:13]} Kd6 {[%emt 0:01:19]} 39. Rc1 {[%emt 0:01:08]} g5 {[%emt 0:00:00]} 40. h3 {[%emt 0:01:33]} Rf4+ {[%emt 0:00:00]} 41. Ke3 {[%emt 0:30:42]} Rxb4 {[%emt 0:29:49]} 42. Rd1 {[%emt 0:00:02]} Rf4 {[%emt 0:00:13]} 43. Kf2 {[%emt 0:03:17]} b4 {[%emt 0:00:12]} 44. Ke3 {[%emt 0:00:16]} b3 {[%emt 0:00:16]} 45. Kf2 {[%emt 0:00:12]} b2 {[%emt 0:00:07]} 46. Rb1 {[%emt 0:00:02]} Rc4 {[%emt 0:00:19]} 47. Ke3 {[%emt 0:00:50]} Rc1 {[%emt 0:00:13]} 48. Rxc1 {[%emt 0:00:03]} bxc1=Q+ {[%emt 0:00:11]} 49. Kd4 {[%emt 0:00:11]} Rb4+ {[%emt 0:00:13] normal} 0-1

[Event "DVM U12w 2023"]
[Site "Magdeburg"]
[Date "2023.12.30"]
[Round "7"]
[White "Weißleder, Emia"]
[Black "Artemenko, Isabella"]
[Result "0-1"]
[WhiteElo "1041"]
[BlackElo "1041"]
[PlyCount "116"]
[EventDate "2022.12.27"]
[EventType "team-tourn"]
[EventRounds "7"]
[EventCountry "GER"]
[TimeControl "40/5400+30:1800+30"]
[WhiteClock "1:13:22"]
[BlackClock "0:58:49"]

1. d4 {[%emt 0:00:07]} d5 {[%emt 0:00:06]} 2. Nc3 {[%emt 0:00:15]} Bf5 {[%emt 0:00:26]} 3. Bf4 {[%emt 0:00:07]} c6 {[%emt 0:00:51]} 4. f3 {[%emt 0:00:26]} e6 {[%emt 0:00:29]} 5. g4 {[%emt 0:00:15]} Bg6 {[%emt 0:00:34]} 6. h4 {[%emt 0:00:08]} h6 {[%emt 0:00:39]} 7. Qd2 {[%emt 0:00:18]} Bd6 {[%emt 0:02:12]} 8. Nh3 {[%emt 0:02:10]} Qxh4+ {[%emt 0:00:49]} 9. Nf2 {[%emt 0:01:04]} Qd8 {[%emt 0:00:17]} 10. O-O-O {[%emt 0:03:09]} Qc7 {[%emt 0:04:25]} 11. Bxd6 {[%emt 0:02:54]} Qxd6 {[%emt 0:00:10]} 12. e4 {[%emt 0:00:52]} Nd7 {[%emt 0:11:42]} 13. exd5 {[%emt 0:05:35]} exd5 {[%emt 0:05:00]} 14. Re1+ {[%emt 0:02:10]} Kd8 {[%emt 0:03:20]} 15. Qe2 {[%emt 0:01:35]} Ngf6 {[%emt 0:02:52]} 16. g5 {[%emt 0:01:47]} Re8 {[%emt 0:01:31]} 17. Qd2 {[%emt 0:01:20]} Rxe1+ {[%emt 0:00:48]} 18. Qxe1 {[%emt 0:00:32]} Qf4+ {[%emt 0:01:00]} 19. Qd2 {[%emt 0:03:48]} Qxg5 {[%emt 0:05:40]} 20. Qxg5 {[%emt 0:00:47]} hxg5 {[%emt 0:00:07]} 21. Rh8+ {[%emt 0:01:02]} Ne8 {[%emt 0:00:13]} 22. Bh3 {[%emt 0:00:38]} Kc7 {[%emt 0:01:41]} 23. Ng4 {[%emt 0:01:14]} Rd8 {[%emt 0:01:23]} 24. Ne5 {[%emt 0:00:43]} Nxe5 {[%emt 0:00:20]} 25. dxe5 {[%emt 0:00:15]} f6 {[%emt 0:05:46]} 26. e6 {[%emt 0:00:40]} Nd6 {[%emt 0:00:24]} 27. Rxd8 {[%emt 0:00:45]} Kxd8 {[%emt 0:00:05]} 28. b4 {[%emt 0:02:00]} Ke7 {[%emt 0:00:17]} 29. a4 {[%emt 0:00:14]} f5 {[%emt 0:01:16]} 30. b5 {[%emt 0:00:44]} Kxe6 {[%emt 0:00:23]} 31. bxc6 {[%emt 0:00:27]} bxc6 {[%emt 0:00:09]} 32. a5 {[%emt 0:00:28]} Nb7 {[%emt 0:00:19]} 33. a6 {[%emt 0:00:05]} Nc5 {[%emt 0:00:12]} 34. Kd1 {[%emt 0:00:41]} Nxa6 {[%emt 0:00:06]} 35. Ke1 {[%emt 0:00:11]} Nb4 {[%emt 0:00:23]} 36. Kd1 {[%emt 0:00:18]} Ke5 {[%emt 0:00:25]} 37. Na4 {[%emt 0:01:02]} Kf4 {[%emt 0:00:18]} 38. Nc5 {[%emt 0:00:08]} Kxf3 {[%emt 0:00:48]} 39. Ne6 {[%emt 0:00:07]} g4 {[%emt 0:00:09]} 40. Bf1 {[%emt 0:00:21]} a5 {[%emt 0:00:11]} 41. Be2+ {[%emt 0:30:38]} Kf2 {[%emt 0:30:30]} 42. c3 {[%emt 0:00:37]} Na2 {[%emt 0:00:11]} 43. Nf4 {[%emt 0:00:22]} Nxc3+ {[%emt 0:00:19]} 44. Kd2 {[%emt 0:00:16]} Nxe2 {[%emt 0:00:11]} 45. Nxg6 {[%emt 0:00:08]} a4 {[%emt 0:00:11]} 46. Kc2 {[%emt 0:00:27]} c5 {[%emt 0:00:09]} 47. Ne5 {[%emt 0:00:15]} g3 {[%emt 0:00:06]} 48. Nd3+ {[%emt 0:00:05]} Kf1 {[%emt 0:00:17]} 49. Nxc5 {[%emt 0:00:28]} g2 {[%emt 0:00:04]} 50. Nxa4 {[%emt 0:00:08]} g1=Q {[%emt 0:00:06]} 51. Nc3 {[%emt 0:00:18]} Nxc3 {[%emt 0:00:08]} 52. Kxc3 {[%emt 0:00:04]} g5 {[%emt 0:00:05]} 53. Kd2 {[%emt 0:00:05]} g4 {[%emt 0:00:04]} 54. Kd1 {[%emt 0:00:11]} g3 {[%emt 0:00:04]} 55. Kc1 {[%emt 0:00:08]} g2 {[%emt 0:00:09]} 56. Kb1 {[%emt 0:00:07]} Qc5 {[%emt 0:00:06]} 57. Ka1 {[%emt 0:00:21]} Qb6 {[%emt 0:00:05]} 58. Ka2 {[%emt 0:00:08]} g1=R {[%emt 0:00:10] normal} 0-1